[Event "Early-Titled-Tuesday-Blitz-April-23-2024"]
[Site "Chess.com"]
[Date "2024.04.23"]
[Round "3"]
[White "sokidze"]
[Black "colegiodemadrid"]
[Result "1-0"]
[WhiteElo "2815"]
[BlackElo "2528"]
[TimeControl "180+1"]
[EndTime "8:28:51 PDT"]
[Termination "sokidze won by checkmate"]

1. d4 {[%clk 0:03:00.9]} 1... d5 {[%clk 0:02:58.5]} 2. c4 {[%clk 0:03:01.4]}
2... e6 {[%clk 0:02:58.8]} 3. Nc3 {[%clk 0:03:01.8]} 3... Nf6 {[%clk 0:02:59.2]}
4. cxd5 {[%clk 0:03:02.2]} 4... exd5 {[%clk 0:02:59.7]} 5. Bg5 {[%clk
0:03:02.8]} 5... Bb4 {[%clk 0:02:55.5]} 6. Qb3 {[%clk 0:03:01.7]} 6... Nc6
{[%clk 0:02:39]} 7. e3 {[%clk 0:03:00.8]} 7... h6 {[%clk 0:02:38.8]} 8. Bxf6
{[%clk 0:02:55.1]} 8... Qxf6 {[%clk 0:02:38.7]} 9. Bd3 {[%clk 0:02:54.3]} 9...
Be6 {[%clk 0:02:35]} 10. Nf3 {[%clk 0:02:51.7]} 10... O-O {[%clk 0:02:33.7]} 11.
O-O {[%clk 0:02:51.6]} 11... Rfd8 {[%clk 0:02:20.3]} 12. a3 {[%clk 0:02:37.2]}
12... Bxc3 {[%clk 0:02:06.1]} 13. Qxc3 {[%clk 0:02:37.5]} 13... Rac8 {[%clk
0:01:49.3]} 14. Rfc1 {[%clk 0:02:30]} 14... Bg4 {[%clk 0:01:34.5]} 15. Nd2
{[%clk 0:02:26.4]} 15... Ne7 {[%clk 0:01:26.6]} 16. b4 {[%clk 0:01:51.4]} 16...
a6 {[%clk 0:01:23.6]} 17. Bf1 {[%clk 0:01:40.9]} 17... Nf5 {[%clk 0:01:19.5]}
18. h3 {[%clk 0:01:36.1]} 18... Bh5 {[%clk 0:01:16.1]} 19. g4 {[%clk 0:01:33.3]}
19... Bxg4 {[%clk 0:00:57.4]} 20. hxg4 {[%clk 0:01:33.3]} 20... Qg5 {[%clk
0:00:58.1]} 21. Bh3 {[%clk 0:00:47.8]} 21... h5 {[%clk 0:00:47.1]} 22. Nf3
{[%clk 0:00:47.6]} 22... Qg6 {[%clk 0:00:45]} 23. Ne5 {[%clk 0:00:47.7]} 23...
Qg5 {[%clk 0:00:43.1]} 24. Nf3 {[%clk 0:00:48]} 24... Qg6 {[%clk 0:00:43.3]} 25.
Kf1 {[%clk 0:00:41.9]} 25... hxg4 {[%clk 0:00:40.4]} 26. Ne5 {[%clk 0:00:42.4]}
26... Qh5 {[%clk 0:00:39]} 27. Bxg4 {[%clk 0:00:42]} 27... Qh1+ {[%clk
0:00:19.6]} 28. Ke2 {[%clk 0:00:41.9]} 28... Ng3+ {[%clk 0:00:20.1]} 29. fxg3
{[%clk 0:00:31]} 29... Qg2+ {[%clk 0:00:20.1]} 30. Kd3 {[%clk 0:00:31.4]} 30...
Qe4+ {[%clk 0:00:19.7]} 31. Kd2 {[%clk 0:00:32.1]} 31... f6 {[%clk 0:00:19.8]}
32. Qd3 {[%clk 0:00:21.4]} 32... Qg2+ {[%clk 0:00:16.8]} 33. Qe2 {[%clk
0:00:22]} 33... Qxg3 {[%clk 0:00:16.2]} 34. Bxc8 {[%clk 0:00:22.6]} 34... fxe5
{[%clk 0:00:15.7]} 35. Be6+ {[%clk 0:00:22.6]} 35... Kf8 {[%clk 0:00:13.2]} 36.
Rxc7 {[%clk 0:00:23.2]} 36... exd4 {[%clk 0:00:08.9]} 37. Rf1+ {[%clk
0:00:23.7]} 37... Ke8 {[%clk 0:00:09.2]} 38. Bf7+ {[%clk 0:00:24.2]} 38... Kf8
{[%clk 0:00:09.8]} 39. Bxd5+ {[%clk 0:00:22.2]} 39... Ke8 {[%clk 0:00:09.9]} 40.
Qh5+ {[%clk 0:00:22.4]} 40... g6 {[%clk 0:00:09.7]} 41. Qh8# {[%clk 0:00:23]}
1-0

[Event "Early-Titled-Tuesday-Blitz-April-23-2024"]
[Site "Chess.com"]
[Date "2024.04.23"]
[Round "3"]
[White "Happy1712Drummer"]
[Black "GalaxyRoman"]
[Result "0-1"]
[WhiteElo "2524"]
[BlackElo "2794"]
[TimeControl "180+1"]
[EndTime "8:28:51 PDT"]
[Termination "GalaxyRoman won by checkmate"]

1. e4 {[%clk 0:03:00.9]} 1... e5 {[%clk 0:02:59.4]} 2. Nf3 {[%clk 0:03:00.9]}
2... Nc6 {[%clk 0:02:59.1]} 3. Nc3 {[%clk 0:03:01.4]} 3... Nf6 {[%clk 0:02:59]}
4. d4 {[%clk 0:03:01.4]} 4... exd4 {[%clk 0:02:59]} 5. Nd5 {[%clk 0:03:02]} 5...
Be7 {[%clk 0:02:55.9]} 6. Bd3 {[%clk 0:02:58.9]} 6... O-O {[%clk 0:02:49.9]} 7.
O-O {[%clk 0:02:52]} 7... d6 {[%clk 0:02:49.4]} 8. h3 {[%clk 0:02:51.2]} 8...
Be6 {[%clk 0:02:45.3]} 9. Nxe7+ {[%clk 0:02:50.9]} 9... Qxe7 {[%clk 0:02:44.6]}
10. Bg5 {[%clk 0:02:51.5]} 10... h6 {[%clk 0:02:44.2]} 11. Bh4 {[%clk 0:02:51]}
11... Rfe8 {[%clk 0:02:33.1]} 12. Qd2 {[%clk 0:02:43.6]} 12... Rad8 {[%clk
0:02:09.5]} 13. Rae1 {[%clk 0:02:41.9]} 13... a6 {[%clk 0:01:44.2]} 14. Qf4
{[%clk 0:02:29.7]} 14... Bc8 {[%clk 0:01:30.8]} 15. Bc4 {[%clk 0:01:50.6]} 15...
Ne5 {[%clk 0:01:02.8]} 16. Bb3 {[%clk 0:00:39.3]} 16... c5 {[%clk 0:00:54.7]}
17. Bd5 {[%clk 0:00:35.3]} 17... Ng6 {[%clk 0:00:33.9]} 18. Bxf6 {[%clk
0:00:24.4]} 18... Nxf4 {[%clk 0:00:32.8]} 19. Bxe7 {[%clk 0:00:24.5]} 19... Rxe7
{[%clk 0:00:33.7]} 20. b4 {[%clk 0:00:05.8]} 20... Nxd5 {[%clk 0:00:23.3]} 21.
exd5 {[%clk 0:00:06]} 21... Rde8 {[%clk 0:00:23.9]} 22. Rxe7 {[%clk 0:00:06.1]}
22... Rxe7 {[%clk 0:00:24.8]} 23. bxc5 {[%clk 0:00:06.6]} 23... dxc5 {[%clk
0:00:25.7]} 24. Rd1 {[%clk 0:00:06]} 24... Bf5 {[%clk 0:00:24.9]} 25. Rd2 {[%clk
0:00:04.8]} 25... Kf8 {[%clk 0:00:22.6]} 26. a4 {[%clk 0:00:02.7]} 26... Be4
{[%clk 0:00:22.6]} 27. Ne1 {[%clk 0:00:02.2]} 27... Bxd5 {[%clk 0:00:22.8]} 28.
Nd3 {[%clk 0:00:02.8]} 28... Rc7 {[%clk 0:00:20.4]} 29. Nf4 {[%clk 0:00:02.9]}
29... Be6 {[%clk 0:00:20.7]} 30. Nxe6+ {[%clk 0:00:03]} 30... fxe6 {[%clk
0:00:21.6]} 31. Kf1 {[%clk 0:00:03.5]} 31... Ke7 {[%clk 0:00:21.5]} 32. Ke2
{[%clk 0:00:04.1]} 32... e5 {[%clk 0:00:22.1]} 33. Kd3 {[%clk 0:00:04.6]} 33...
Kd6 {[%clk 0:00:22.6]} 34. Ke4 {[%clk 0:00:05.3]} 34... Rf7 {[%clk 0:00:23.1]}
35. f3 {[%clk 0:00:05.9]} 35... Rf4+ {[%clk 0:00:23.1]} 36. Kd3 {[%clk
0:00:06.6]} 36... Kd5 {[%clk 0:00:23.8]} 37. Re2 {[%clk 0:00:07.3]} 37... c4+
{[%clk 0:00:24.1]} 38. Kd2 {[%clk 0:00:08.1]} 38... e4 {[%clk 0:00:24.1]} 39.
fxe4+ {[%clk 0:00:08.4]} 39... Rxe4 {[%clk 0:00:24.9]} 40. Rf2 {[%clk
0:00:09.2]} 40... c3+ {[%clk 0:00:25.5]} 41. Kd3 {[%clk 0:00:09.4]} 41... Re3#
{[%clk 0:00:26]} 0-1

[Event "Early-Titled-Tuesday-Blitz-April-23-2024"]
[Site "Chess.com"]
[Date "2024.04.23"]
[Round "3"]
[White "erugee"]
[Black "Payyappat"]
[Result "0-1"]
[WhiteElo "2301"]
[BlackElo "2526"]
[TimeControl "180+1"]
[EndTime "8:28:51 PDT"]
[Termination "Payyappat won on time"]

1. e4 {[%clk 0:03:00.9]} 1... c6 {[%clk 0:02:58.9]} 2. d3 {[%clk 0:02:59.8]}
2... d5 {[%clk 0:02:59.8]} 3. Nd2 {[%clk 0:02:59.5]} 3... e5 {[%clk 0:02:59.2]}
4. Ngf3 {[%clk 0:02:59.5]} 4... Bd6 {[%clk 0:03:00.1]} 5. g3 {[%clk 0:02:59.6]}
5... f5 {[%clk 0:02:58.3]} 6. Bg2 {[%clk 0:02:59]} 6... Nf6 {[%clk 0:02:57.9]}
7. Qe2 {[%clk 0:02:57.9]} 7... O-O {[%clk 0:02:57.9]} 8. O-O {[%clk 0:02:56.1]}
8... f4 {[%clk 0:02:56.1]} 9. h3 {[%clk 0:02:51.8]} 9... Bd7 {[%clk 0:02:42.5]}
10. c4 {[%clk 0:02:51.6]} 10... Qc8 {[%clk 0:02:40.2]} 11. Kh2 {[%clk
0:02:49.1]} 11... d4 {[%clk 0:02:37.2]} 12. c5 {[%clk 0:02:47]} 12... Bc7 {[%clk
0:02:36.6]} 13. Nc4 {[%clk 0:02:46.1]} 13... Qe8 {[%clk 0:02:26.6]} 14. b4
{[%clk 0:02:40.9]} 14... Qh5 {[%clk 0:02:26]} 15. Nd6 {[%clk 0:02:20.7]} 15...
Na6 {[%clk 0:02:23]} 16. a3 {[%clk 0:02:08.7]} 16... b6 {[%clk 0:02:21]} 17.
gxf4 {[%clk 0:02:04.2]} 17... bxc5 {[%clk 0:02:20]} 18. fxe5 {[%clk 0:02:03.1]}
18... Ng4+ {[%clk 0:02:19.5]} 19. Kg1 {[%clk 0:02:02]} 19... Nxe5 {[%clk
0:02:19.7]} 20. Nf5 {[%clk 0:01:48]} 20... Bxf5 {[%clk 0:02:14.1]} 21. exf5
{[%clk 0:01:47.6]} 21... Qxf5 {[%clk 0:02:09.4]} 22. Nxe5 {[%clk 0:01:43.3]}
22... Bxe5 {[%clk 0:02:10]} 23. b5 {[%clk 0:01:31.8]} 23... cxb5 {[%clk
0:01:57.6]} 24. Bxa8 {[%clk 0:01:28.3]} 24... Rxa8 {[%clk 0:01:50.5]} 25. f4
{[%clk 0:01:28.2]} 25... Bf6 {[%clk 0:01:48.8]} 26. Qe4 {[%clk 0:01:27.1]} 26...
Qxe4 {[%clk 0:01:45]} 27. dxe4 {[%clk 0:01:27.2]} 27... c4 {[%clk 0:01:45.2]}
28. e5 {[%clk 0:01:27.6]} 28... Be7 {[%clk 0:01:45.2]} 29. Rb1 {[%clk
0:01:26.8]} 29... Nc7 {[%clk 0:01:44.8]} 30. f5 {[%clk 0:01:07.5]} 30... Bc5
{[%clk 0:01:43.2]} 31. Kg2 {[%clk 0:01:06.9]} 31... d3 {[%clk 0:01:29.5]} 32. f6
{[%clk 0:01:05.5]} 32... c3 {[%clk 0:01:27.5]} 33. f7+ {[%clk 0:01:01.3]} 33...
Kf8 {[%clk 0:01:26.5]} 34. Bg5 {[%clk 0:00:52.6]} 34... h6 {[%clk 0:01:15]} 35.
Bf4 {[%clk 0:00:46.3]} 35... c2 {[%clk 0:01:02.2]} 36. Rb3 {[%clk 0:00:42.7]}
36... Nd5 {[%clk 0:00:58.3]} 37. Bd2 {[%clk 0:00:18.2]} 37... Ne3+ {[%clk
0:00:56]} 38. Bxe3 {[%clk 0:00:18.2]} 38... Bxe3 {[%clk 0:00:56.9]} 39. Rxd3
{[%clk 0:00:18.2]} 39... c1=Q {[%clk 0:00:56]} 40. Rxc1 {[%clk 0:00:18.7]} 40...
Bxc1 {[%clk 0:00:56.9]} 41. Rd7 {[%clk 0:00:17]} 41... Bxa3 {[%clk 0:00:55.8]}
42. e6 {[%clk 0:00:17.7]} 42... Be7 {[%clk 0:00:55.9]} 43. Rb7 {[%clk
0:00:17.1]} 43... b4 {[%clk 0:00:55.8]} 44. Kf3 {[%clk 0:00:16.5]} 44... a5
{[%clk 0:00:55.9]} 45. Ke4 {[%clk 0:00:13.7]} 45... a4 {[%clk 0:00:56.4]} 46.
Kf5 {[%clk 0:00:07.9]} 46... a3 {[%clk 0:00:55.3]} 47. Kg6 {[%clk 0:00:08.6]}
47... a2 {[%clk 0:00:55.2]} 48. Rxe7 {[%clk 0:00:08.8]} 48... Kxe7 {[%clk
0:00:54.2]} 0-1

[Event "Early-Titled-Tuesday-Blitz-April-23-2024"]
[Site "Chess.com"]
[Date "2024.04.23"]
[Round "3"]
[White "frequentblunders"]
[Black "yonaltimur"]
[Result "0-1"]
[WhiteElo "2196"]
[BlackElo "2411"]
[TimeControl "180+1"]
[EndTime "8:28:51 PDT"]
[Termination "yonaltimur won by resignation"]

1. e4 {[%clk 0:03:00.3]} 1... c5 {[%clk 0:02:47.4]} 2. Nf3 {[%clk 0:02:58.2]}
2... d6 {[%clk 0:02:47.5]} 3. Nc3 {[%clk 0:02:57.7]} 3... Nf6 {[%clk 0:02:47.9]}
4. d4 {[%clk 0:02:55.5]} 4... cxd4 {[%clk 0:02:48.8]} 5. Nxd4 {[%clk 0:02:55.1]}
5... a6 {[%clk 0:02:49.6]} 6. Be2 {[%clk 0:02:54.4]} 6... e5 {[%clk 0:02:49.7]}
7. Nf3 {[%clk 0:02:51.7]} 7... Be6 {[%clk 0:02:50.1]} 8. O-O {[%clk 0:02:51.7]}
8... Be7 {[%clk 0:02:49.3]} 9. h3 {[%clk 0:02:51.7]} 9... h6 {[%clk 0:02:49.3]}
10. a4 {[%clk 0:02:50.4]} 10... O-O {[%clk 0:02:49.7]} 11. Be3 {[%clk
0:02:47.8]} 11... Nbd7 {[%clk 0:02:48.4]} 12. Qd2 {[%clk 0:02:46.5]} 12... Rc8
{[%clk 0:02:48.8]} 13. Rfd1 {[%clk 0:02:46.5]} 13... Qc7 {[%clk 0:02:49.1]} 14.
a5 {[%clk 0:02:45.3]} 14... Rfd8 {[%clk 0:02:49.4]} 15. Na4 {[%clk 0:02:43.5]}
15... Nc5 {[%clk 0:02:47.3]} 16. Nxc5 {[%clk 0:02:43.1]} 16... dxc5 {[%clk
0:02:48.2]} 17. Qc3 {[%clk 0:02:41.8]} 17... Nxe4 {[%clk 0:02:47.2]} 18. Qxe5
{[%clk 0:02:41.3]} 18... Qxe5 {[%clk 0:02:47.3]} 19. Nxe5 {[%clk 0:02:42]} 19...
Bf6 {[%clk 0:02:47.7]} 20. Bf4 {[%clk 0:02:37]} 20... g5 {[%clk 0:02:45.6]} 21.
Bh2 {[%clk 0:02:36.8]} 21... Kf8 {[%clk 0:02:34.7]} 22. c3 {[%clk 0:02:24.8]}
22... Ke7 {[%clk 0:02:32]} 23. Ng4 {[%clk 0:02:22.7]} 23... Bg7 {[%clk
0:02:23.1]} 24. Bf3 {[%clk 0:02:16.4]} 24... f5 {[%clk 0:02:16.8]} 25. Ne5
{[%clk 0:02:05.4]} 25... Rxd1+ {[%clk 0:01:52.3]} 26. Rxd1 {[%clk 0:02:03.8]}
26... Rd8 {[%clk 0:01:52.8]} 27. Rxd8 {[%clk 0:01:43.2]} 27... Kxd8 {[%clk
0:01:53.7]} 28. g4 {[%clk 0:01:32.9]} 28... Nd2 {[%clk 0:01:49.5]} 29. Bxb7
{[%clk 0:01:28.9]} 29... f4 {[%clk 0:01:49.8]} 30. Nf3 {[%clk 0:01:17.9]} 30...
Kc7 {[%clk 0:01:44.1]} 31. Nxd2 {[%clk 0:01:15.8]} 31... Kxb7 {[%clk 0:01:43.6]}
32. f3 {[%clk 0:01:06]} 32... Kc6 {[%clk 0:01:41.9]} 33. Kf1 {[%clk 0:01:03.8]}
33... Kb5 {[%clk 0:01:41.7]} 34. Bg1 {[%clk 0:01:02.8]} 34... Bc4+ {[%clk
0:01:37.7]} 35. Nxc4 {[%clk 0:00:59.2]} 35... Kxc4 {[%clk 0:01:38.6]} 36. Ke1
{[%clk 0:00:59.1]} 36... Kb3 {[%clk 0:01:29.5]} 37. Bxc5 {[%clk 0:00:58.1]}
37... Kxb2 {[%clk 0:01:22.4]} 38. Bd4 {[%clk 0:00:56.1]} 38... Bf8 {[%clk
0:01:21.9]} 39. Kd2 {[%clk 0:00:53.9]} 39... Kb3 {[%clk 0:01:20.7]} 40. Kd3
{[%clk 0:00:50.8]} 40... Ka4 {[%clk 0:01:20.7]} 41. Bb6 {[%clk 0:00:50.3]} 41...
Kb5 {[%clk 0:01:19.8]} 42. c4+ {[%clk 0:00:48.2]} 42... Kc6 {[%clk 0:01:19]} 43.
Ke4 {[%clk 0:00:44.6]} 43... Bc5 {[%clk 0:01:17.5]} 44. Kf5 {[%clk 0:00:43.9]}
44... Bxb6 {[%clk 0:01:17.6]} 45. axb6 {[%clk 0:00:42.2]} 45... Kxb6 {[%clk
0:01:18.5]} 46. Kg6 {[%clk 0:00:34.9]} 46... a5 {[%clk 0:01:18.3]} 47. Kxh6
{[%clk 0:00:34.7]} 47... a4 {[%clk 0:01:19]} 48. Kxg5 {[%clk 0:00:32.6]} 48...
a3 {[%clk 0:01:19.9]} 49. h4 {[%clk 0:00:30.5]} 49... a2 {[%clk 0:01:20.8]} 50.
h5 {[%clk 0:00:26.9]} 50... a1=Q {[%clk 0:01:21.7]} 51. Kxf4 {[%clk 0:00:25.2]}
51... Qf6+ {[%clk 0:01:19.3]} 52. Ke4 {[%clk 0:00:22.1]} 52... Kc5 {[%clk
0:01:18.9]} 53. f4 {[%clk 0:00:21.7]} 53... Kxc4 {[%clk 0:01:19.1]} 54. g5
{[%clk 0:00:22]} 54... Qe6+ {[%clk 0:01:18.3]} 55. Kf3 {[%clk 0:00:21.5]} 55...
Qh3+ {[%clk 0:01:18.7]} 56. Ke4 {[%clk 0:00:20.9]} 56... Qxh5 {[%clk 0:01:18.9]}
0-1

[Event "Early-Titled-Tuesday-Blitz-April-23-2024"]
[Site "Chess.com"]
[Date "2024.04.23"]
[Round "3"]
[White "Makswolf200817"]
[Black "FairChess_on_YouTube"]
[Result "1-0"]
[WhiteElo "2802"]
[BlackElo "3088"]
[TimeControl "180+1"]
[EndTime "8:28:52 PDT"]
[Termination "Makswolf200817 won by resignation"]

1. d4 {[%clk 0:03:00.9]} 1... Nf6 {[%clk 0:03:00.1]} 2. c4 {[%clk 0:03:00.8]}
2... g6 {[%clk 0:03:00.2]} 3. g3 {[%clk 0:03:01]} 3... Bg7 {[%clk 0:03:00.6]} 4.
Bg2 {[%clk 0:03:01.7]} 4... O-O {[%clk 0:03:01.1]} 5. Nc3 {[%clk 0:03:02.4]}
5... d6 {[%clk 0:03:00.7]} 6. Nf3 {[%clk 0:03:03]} 6... c5 {[%clk 0:03:00.9]} 7.
d5 {[%clk 0:02:59.7]} 7... Na6 {[%clk 0:02:55.4]} 8. O-O {[%clk 0:02:58.4]} 8...
Rb8 {[%clk 0:02:55.8]} 9. e4 {[%clk 0:02:51.6]} 9... Bg4 {[%clk 0:02:53.6]} 10.
Re1 {[%clk 0:02:43.3]} 10... Nd7 {[%clk 0:02:52.3]} 11. h3 {[%clk 0:02:26.6]}
11... Bxf3 {[%clk 0:02:51.8]} 12. Bxf3 {[%clk 0:02:21.6]} 12... Nc7 {[%clk
0:02:51.8]} 13. Be2 {[%clk 0:02:14.9]} 13... Bd4 {[%clk 0:02:50.3]} 14. Bf1
{[%clk 0:02:09.6]} 14... e5 {[%clk 0:02:47.6]} 15. Bh6 {[%clk 0:01:54.8]} 15...
Qf6 {[%clk 0:02:41.2]} 16. Qd2 {[%clk 0:01:52]} 16... Rfc8 {[%clk 0:02:39]} 17.
Bg5 {[%clk 0:01:42.2]} 17... Bxf2+ {[%clk 0:02:36.6]} 18. Qxf2 {[%clk
0:01:34.6]} 18... Qxg5 {[%clk 0:02:36.8]} 19. Re3 {[%clk 0:01:32.5]} 19... Rf8
{[%clk 0:02:36.2]} 20. Rf3 {[%clk 0:01:32.3]} 20... f5 {[%clk 0:02:33.5]} 21.
exf5 {[%clk 0:01:32.7]} 21... gxf5 {[%clk 0:02:32.7]} 22. Kh2 {[%clk 0:01:26.2]}
22... Rf6 {[%clk 0:02:29.4]} 23. h4 {[%clk 0:01:19]} 23... Qh5 {[%clk
0:02:29.3]} 24. Bh3 {[%clk 0:01:02.6]} 24... Rbf8 {[%clk 0:02:29.4]} 25. Rf1
{[%clk 0:01:03.3]} 25... e4 {[%clk 0:02:22.5]} 26. Rf4 {[%clk 0:00:48]} 26...
Ne5 {[%clk 0:02:21.8]} 27. Nxe4 {[%clk 0:00:45.3]} 27... fxe4 {[%clk 0:02:16.4]}
28. Rxf6 {[%clk 0:00:45.2]} 28... Nf3+ {[%clk 0:02:16.2]} 29. Rxf3 {[%clk
0:00:43.1]} 29... Rxf3 {[%clk 0:02:17]} 30. Qe2 {[%clk 0:00:40.9]} 30... Qg6
{[%clk 0:01:56.5]} 31. Rxf3 {[%clk 0:00:33.3]} 31... exf3 {[%clk 0:01:57.4]} 32.
Qxf3 {[%clk 0:00:34.2]} 32... Qc2+ {[%clk 0:01:57.5]} 33. Bg2 {[%clk 0:00:34.9]}
33... Ne8 {[%clk 0:01:52.6]} 34. Qg4+ {[%clk 0:00:31.8]} 34... Kf8 {[%clk
0:01:51.9]} 35. Qf4+ {[%clk 0:00:29]} 35... Ke7 {[%clk 0:01:51]} 36. Qe4+ {[%clk
0:00:21.7]} 36... Qxe4 {[%clk 0:01:51]} 37. Bxe4 {[%clk 0:00:22.6]} 37... h6
{[%clk 0:01:50.3]} 38. g4 {[%clk 0:00:22]} 38... Nf6 {[%clk 0:01:49.4]} 39. Bf5
{[%clk 0:00:22.2]} 39... b5 {[%clk 0:01:49.5]} 40. g5 {[%clk 0:00:17]} 40...
hxg5 {[%clk 0:01:47.9]} 41. hxg5 {[%clk 0:00:17.9]} 41... Nh5 {[%clk 0:01:43.4]}
42. cxb5 {[%clk 0:00:15.9]} 42... Nf4 {[%clk 0:01:43.2]} 43. a4 {[%clk
0:00:16.5]} 43... Nxd5 {[%clk 0:01:42.6]} 44. a5 {[%clk 0:00:17.1]} 44... c4
{[%clk 0:01:33.2]} 45. Kg1 {[%clk 0:00:14.7]} 45... Nb4 {[%clk 0:00:57.6]} 46.
b6 {[%clk 0:00:14.2]} 46... axb6 {[%clk 0:00:58.1]} 47. axb6 {[%clk 0:00:15.1]}
47... d5 {[%clk 0:00:58.5]} 48. b7 {[%clk 0:00:14.6]} 48... Nc6 {[%clk
0:00:56.1]} 49. Kf2 {[%clk 0:00:14.7]} 49... d4 {[%clk 0:00:56.5]} 50. Ke2
{[%clk 0:00:11.2]} 50... Kd6 {[%clk 0:00:53.9]} 51. g6 {[%clk 0:00:10.7]} 51...
Ne7 {[%clk 0:00:54]} 52. b8=Q+ {[%clk 0:00:07.6]} 1-0

[Event "Early-Titled-Tuesday-Blitz-April-23-2024"]
[Site "Chess.com"]
[Date "2024.04.23"]
[Round "3"]
[White "margarita_2703"]
[Black "rhungaski"]
[Result "0-1"]
[WhiteElo "2296"]
[BlackElo "2506"]
[TimeControl "180+1"]
[EndTime "8:28:52 PDT"]
[Termination "rhungaski won by checkmate"]

1. e4 {[%clk 0:02:58.4]} 1... e5 {[%clk 0:02:57]} 2. Nf3 {[%clk 0:02:57.9]} 2...
Nc6 {[%clk 0:02:57.4]} 3. Bc4 {[%clk 0:02:58.6]} 3... Nf6 {[%clk 0:02:57.5]} 4.
O-O {[%clk 0:02:55.5]} 4... h6 {[%clk 0:02:54.8]} 5. d4 {[%clk 0:02:52.9]} 5...
exd4 {[%clk 0:02:35.4]} 6. e5 {[%clk 0:02:47.1]} 6... d5 {[%clk 0:02:24.6]} 7.
exf6 {[%clk 0:02:32.9]} 7... dxc4 {[%clk 0:02:24.2]} 8. Re1+ {[%clk 0:02:32.8]}
8... Be6 {[%clk 0:02:23.9]} 9. Na3 {[%clk 0:01:09.2]} 9... Qd5 {[%clk
0:02:12.5]} 10. b3 {[%clk 0:00:59.6]} 10... c3 {[%clk 0:01:58]} 11. Qd3 {[%clk
0:00:52.9]} 11... gxf6 {[%clk 0:01:42.5]} 12. Nb5 {[%clk 0:00:51.3]} 12... O-O-O
{[%clk 0:01:40.9]} 13. Bf4 {[%clk 0:00:39.5]} 13... Rd7 {[%clk 0:01:22.2]} 14.
Rad1 {[%clk 0:00:33]} 14... Rg8 {[%clk 0:00:47.5]} 15. Bg3 {[%clk 0:00:30.8]}
15... Nb4 {[%clk 0:00:35]} 16. Qe2 {[%clk 0:00:30.3]} 16... d3 {[%clk
0:00:34.5]} 17. Qe4 {[%clk 0:00:17.3]} 17... Qxb5 {[%clk 0:00:32.7]} 18. cxd3
{[%clk 0:00:15.5]} 18... c2 {[%clk 0:00:30]} 19. Rc1 {[%clk 0:00:14.5]} 19...
Qxd3 {[%clk 0:00:15.3]} 20. Qf4 {[%clk 0:00:08.9]} 20... Bd6 {[%clk 0:00:14.4]}
21. Qxf6 {[%clk 0:00:07.4]} 21... Nxa2 {[%clk 0:00:13.3]} 22. Bxd6 {[%clk
0:00:05]} 22... Rxd6 {[%clk 0:00:11.5]} 23. Ra1 {[%clk 0:00:04.3]} 23... c1=Q
{[%clk 0:00:09.1]} 24. Raxc1 {[%clk 0:00:03.4]} 24... Nxc1 {[%clk 0:00:10]} 25.
Qb2 {[%clk 0:00:02.6]} 25... Nxb3 {[%clk 0:00:09.3]} 26. Qe5 {[%clk 0:00:02.7]}
26... Qxf3 {[%clk 0:00:08.6]} 27. g3 {[%clk 0:00:02.1]} 27... Bh3 {[%clk
0:00:06.5]} 28. Qe4 {[%clk 0:00:01.7]} 28... Qxe4 {[%clk 0:00:06.2]} 29. Rxe4
{[%clk 0:00:02.6]} 29... Rd1+ {[%clk 0:00:06.9]} 30. Re1 {[%clk 0:00:03.4]}
30... Rxe1# {[%clk 0:00:07.8]} 0-1

[Event "Early-Titled-Tuesday-Blitz-April-23-2024"]
[Site "Chess.com"]
[Date "2024.04.23"]
[Round "3"]
[White "ljuks68"]
[Black "Louis-Paulsen-Fan"]
[Result "0-1"]
[WhiteElo "2383"]
[BlackElo "2344"]
[TimeControl "180+1"]
[EndTime "8:28:53 PDT"]
[Termination "Louis-Paulsen-Fan won on time"]

1. e4 {[%clk 0:02:46.3]} 1... Nf6 {[%clk 0:02:59.7]} 2. e5 {[%clk 0:02:45.7]}
2... Nd5 {[%clk 0:02:59]} 3. c4 {[%clk 0:02:46.4]} 3... Nb6 {[%clk 0:02:59.2]}
4. d4 {[%clk 0:02:47]} 4... d6 {[%clk 0:02:59.4]} 5. f4 {[%clk 0:02:47.6]} 5...
dxe5 {[%clk 0:02:59.8]} 6. fxe5 {[%clk 0:02:48.1]} 6... c5 {[%clk 0:03:00.5]} 7.
d5 {[%clk 0:02:48.2]} 7... e6 {[%clk 0:03:01.1]} 8. Nc3 {[%clk 0:02:48.7]} 8...
exd5 {[%clk 0:03:01.5]} 9. cxd5 {[%clk 0:02:49.1]} 9... Qh4+ {[%clk 0:03:01.6]}
10. g3 {[%clk 0:02:45.5]} 10... Qd4 {[%clk 0:03:02.2]} 11. Nf3 {[%clk
0:02:39.5]} 11... Qxd1+ {[%clk 0:03:01.4]} 12. Kxd1 {[%clk 0:02:39.7]} 12... Bg4
{[%clk 0:03:01.5]} 13. Be2 {[%clk 0:02:38.1]} 13... Na6 {[%clk 0:03:00.9]} 14.
h3 {[%clk 0:02:19.3]} 14... Bxf3 {[%clk 0:03:00.1]} 15. Bxf3 {[%clk 0:02:19.6]}
15... Nb4 {[%clk 0:03:00.3]} 16. d6 {[%clk 0:02:10.2]} 16... O-O-O {[%clk
0:02:51.5]} 17. Bf4 {[%clk 0:01:47.5]} 17... f6 {[%clk 0:02:43.5]} 18. a3 {[%clk
0:01:36.8]} 18... Nd3 {[%clk 0:02:39.1]} 19. Kc2 {[%clk 0:01:35.1]} 19... Nxe5
{[%clk 0:02:35.6]} 20. Bxe5 {[%clk 0:01:35]} 20... fxe5 {[%clk 0:02:35.7]} 21.
Nb5 {[%clk 0:01:30.6]} 21... a6 {[%clk 0:02:25]} 22. Nc3 {[%clk 0:01:29.2]}
22... Bxd6 {[%clk 0:02:22.6]} 23. Rae1 {[%clk 0:01:19.1]} 23... Rhf8 {[%clk
0:02:12.6]} 24. Rhf1 {[%clk 0:01:18.7]} 24... Nc4 {[%clk 0:02:07.9]} 25. a4
{[%clk 0:01:04.5]} 25... b6 {[%clk 0:02:01.4]} 26. b3 {[%clk 0:01:03.9]} 26...
Na5 {[%clk 0:01:52.4]} 27. Nd5 {[%clk 0:00:58.5]} 27... Bc7 {[%clk 0:01:40]} 28.
Nxc7 {[%clk 0:00:51.3]} 28... Kxc7 {[%clk 0:01:38.9]} 29. Rxe5 {[%clk
0:00:51.4]} 29... Nc6 {[%clk 0:01:37]} 30. Re3 {[%clk 0:00:43]} 30... Nd4+
{[%clk 0:01:34]} 31. Kc3 {[%clk 0:00:39.9]} 31... Rd7 {[%clk 0:01:22.5]} 32. Bg2
{[%clk 0:00:37.6]} 32... Rxf1 {[%clk 0:01:18.8]} 33. Bxf1 {[%clk 0:00:37.8]}
33... b5 {[%clk 0:01:14.9]} 34. axb5 {[%clk 0:00:34.1]} 34... axb5 {[%clk
0:01:15.8]} 35. Re5 {[%clk 0:00:29.6]} 35... Kd6 {[%clk 0:01:13.1]} 36. Re4
{[%clk 0:00:28.2]} 36... b4+ {[%clk 0:01:11.3]} 37. Kc4 {[%clk 0:00:27.2]} 37...
Rf7 {[%clk 0:01:08.6]} 38. Rf4 {[%clk 0:00:21.9]} 38... Rxf4 {[%clk 0:00:54.4]}
39. gxf4 {[%clk 0:00:22.1]} 39... g6 {[%clk 0:00:54.8]} 40. Bd3 {[%clk
0:00:16.8]} 40... Nf3 {[%clk 0:00:50.8]} 41. Be2 {[%clk 0:00:08.1]} 41... Nh4
{[%clk 0:00:40.9]} 42. Kd3 {[%clk 0:00:06]} 42... Kd5 {[%clk 0:00:38.1]} 43.
Bf3+ {[%clk 0:00:05.8]} 43... Nxf3 {[%clk 0:00:37.3]} 0-1